[Event "January 9 Late 2024"]
[Site "https://www.chess.com"]
[Date "2024.01.09"]
[Round "3"]
[White "Ibarra Jerez, Jose Carlos"]
[Black "Pinheiro, Iung Alicio de O."]
[Result "1-0"]
[Board "44"]
[TimeControl "180+1"]
[WhiteFideId "2226332"]
[BlackFideId "2104350"]
[WhiteElo "2926"]
[BlackElo "2609"]
[WhiteTeam "ESP"]
[BlackTeam "BRA"]
[WhiteClock "0:00:06"]
[BlackClock "0:00:04"]

1. d4 {[%clk 0:03:00]}  Nf6 {[%clk 0:02:57]} 2. Nc3 {[%clk 0:03:00]}  d5 {[%clk 0:02:56]} 3. Bf4 {[%clk 0:03:00]}  g6 {[%clk 0:02:55]} 4. h4 {[%clk 0:02:57]}  h5 {[%clk 0:02:54]} 5. Nb5 {[%clk 0:02:57]}  Na6 {[%clk 0:02:53]} 6. e3 {[%clk 0:02:57]}  Bg7 {[%clk 0:02:51]} 7. Nf3 {[%clk 0:02:55]}  O-O {[%clk 0:02:49]} 8. Ne5 {[%clk 0:02:53]}  c6 {[%clk 0:02:48]} 9. Nc3 {[%clk 0:02:53]}  c5 {[%clk 0:02:48]} 10. Nb5 {[%clk 0:02:50]}  cxd4 {[%clk 0:02:41]} 11. exd4 {[%clk 0:02:48]}  Nb4 {[%clk 0:02:42]} 12. c3 {[%clk 0:02:42]}  Nc6 {[%clk 0:02:41]} 13. Bd3 {[%clk 0:02:24]}  Ng4 {[%clk 0:02:18]} 14. Nxg4 {[%clk 0:02:06]}  Bxg4 {[%clk 0:02:15]} 15. f3 {[%clk 0:02:06]}  Bd7 {[%clk 0:02:04]} 16. O-O {[%clk 0:01:30]}  e5 {[%clk 0:01:58]} 17. dxe5 {[%clk 0:01:02]}  Nxe5 {[%clk 0:01:36]} 18. Bg5 {[%clk 0:00:49]}  Qb6+ {[%clk 0:01:13]} 19. Nd4 {[%clk 0:00:50]}  Qxb2 {[%clk 0:01:05]} 20. Rc1 {[%clk 0:00:50]}  Rac8 {[%clk 0:00:56]} 21. Rf2 {[%clk 0:00:49]}  Qa3 {[%clk 0:00:55]} 22. Nb3 {[%clk 0:00:30]}  Nxd3 {[%clk 0:00:41]} 23. Qxd3 {[%clk 0:00:30]}  Bf5 {[%clk 0:00:42]} 24. Qd2 {[%clk 0:00:30]}  Qa4 {[%clk 0:00:37]} 25. Nd4 {[%clk 0:00:22]}  Bd7 {[%clk 0:00:36]} 26. Bh6 {[%clk 0:00:21]}  Rfe8 {[%clk 0:00:27]} 27. Bxg7 {[%clk 0:00:21]}  Kxg7 {[%clk 0:00:28]} 28. Qf4 {[%clk 0:00:21]}  Qa3 {[%clk 0:00:26]} 29. Nb3 {[%clk 0:00:14]}  Qe7 {[%clk 0:00:24]} 30. Qd4+ {[%clk 0:00:14]}  Qf6 {[%clk 0:00:24]} 31. Qxd5 {[%clk 0:00:11]}  Bc6 {[%clk 0:00:23]} 32. Qd4 {[%clk 0:00:11]}  Rcd8 {[%clk 0:00:23]} 33. Qxf6+ {[%clk 0:00:11]}  Kxf6 {[%clk 0:00:24]} 34. Nd4 {[%clk 0:00:12]}  Bd5 {[%clk 0:00:24]} 35. Rb2 {[%clk 0:00:12]}  b6 {[%clk 0:00:24]} 36. Kf2 {[%clk 0:00:12]}  Rc8 {[%clk 0:00:24]} 37. a4 {[%clk 0:00:12]}  Rc5 {[%clk 0:00:24]} 38. Nb5 {[%clk 0:00:10]}  Re7 {[%clk 0:00:22]} 39. Rd1 {[%clk 0:00:09]}  Bc6 {[%clk 0:00:22]} 40. Rd6+ {[%clk 0:00:07]}  Kg7 {[%clk 0:00:22]} 41. Rd3 {[%clk 0:00:03]}  Bxb5 {[%clk 0:00:18]} 42. axb5 {[%clk 0:00:03]}  Ree5 {[%clk 0:00:19]} 43. Ra2 {[%clk 0:00:02]}  Rxb5 {[%clk 0:00:17]} 44. Rxa7 {[%clk 0:00:03]}  Rb2+ {[%clk 0:00:18]} 45. Kg3 {[%clk 0:00:02]}  Ree2 {[%clk 0:00:14]} 46. Rdd7 {[%clk 0:00:03]}  Rxg2+ {[%clk 0:00:14]} 47. Kf4 {[%clk 0:00:04]}  Kf6 {[%clk 0:00:13]} 48. Rd6+ {[%clk 0:00:03]}  Kg7 {[%clk 0:00:13]} 49. Rdd7 {[%clk 0:00:04]}  Kf6 {[%clk 0:00:13]} 50. Rxf7+ {[%clk 0:00:05]}  Ke6 {[%clk 0:00:14]} 51. Rfc7 {[%clk 0:00:05]}  Kd6 {[%clk 0:00:13]} 52. Rf7 {[%clk 0:00:04]}  Kc6 {[%clk 0:00:12]} 53. Rac7+ {[%clk 0:00:05]}  Kb5 {[%clk 0:00:12]} 54. Rf6 {[%clk 0:00:05]}  Rbe2 {[%clk 0:00:11]} 55. Rb7 {[%clk 0:00:04]}  Kc4 {[%clk 0:00:11]} 56. Rc7+ {[%clk 0:00:04]}  Kd3 {[%clk 0:00:10]} 57. Rd6+ {[%clk 0:00:03]}  Kc2 {[%clk 0:00:10]} 58. Rxb6 {[%clk 0:00:03]}  Rh2 {[%clk 0:00:10]} 59. Kg5 {[%clk 0:00:03]}  Reg2+ {[%clk 0:00:10]} 60. Kh6 {[%clk 0:00:04]}  Rxh4 {[%clk 0:00:10]} 61. Rf7 {[%clk 0:00:02]}  Rh1 {[%clk 0:00:09]} 62. Rxg6 {[%clk 0:00:03]}  Rf2 {[%clk 0:00:08]} 63. f4 {[%clk 0:00:02]}  Kxc3 {[%clk 0:00:08]} 64. f5 {[%clk 0:00:03]}  Rhf1 {[%clk 0:00:08]} 65. Kg5 {[%clk 0:00:02]}  h4 {[%clk 0:00:07]} 66. Rc6+ {[%clk 0:00:02]}  Kd3 {[%clk 0:00:07]} 67. Rd7+ {[%clk 0:00:02]}  Ke4 {[%clk 0:00:07]} 68. f6 {[%clk 0:00:03]}  Rf5+ {[%clk 0:00:07]} 69. Kg6 {[%clk 0:00:03]}  R5f2 {[%clk 0:00:06]} 70. f7 {[%clk 0:00:03]}  Rg1+ {[%clk 0:00:06]} 71. Kh7 {[%clk 0:00:03]}  Rgf1 {[%clk 0:00:06]} 72. Re6+ {[%clk 0:00:04]}  Kf5 {[%clk 0:00:05]} 73. f8=Q+ {[%clk 0:00:05]}  Kxe6 {[%clk 0:00:06]} 74. Re7+ {[%clk 0:00:05]}  Kd6 {[%clk 0:00:05]} 75. Qd8+ {[%clk 0:00:06]}  Kc6 {[%clk 0:00:06]} 76. Rc7+ {[%clk 0:00:06]}  Kb6 {[%clk 0:00:04]} 77. Qb8+ {[%clk 0:00:06]} 1-0

[Event "January 9 Late 2024"]
[Site "https://www.chess.com"]
[Date "2024.01.09"]
[Round "3"]
[White "Zhigalko, Sergei"]
[Black "Rogov, Matfey"]
[Result "1-0"]
[Board "45"]
[TimeControl "180+1"]
[WhiteFideId "13502956"]
[BlackFideId "44191308"]
[WhiteElo "2921"]
[BlackElo "2582"]
[WhiteTeam "BLR"]
[BlackTeam "RUS"]
[WhiteClock "0:00:25"]
[BlackClock "0:00:00"]

1. e4 {[%clk 0:03:00]}  e5 {[%clk 0:03:00]} 2. Nf3 {[%clk 0:03:01]}  Nc6 {[%clk 0:03:00]} 3. Bb5 {[%clk 0:03:01]}  Bb4 {[%clk 0:02:59]} 4. O-O {[%clk 0:02:59]}  Nge7 {[%clk 0:02:57]} 5. c3 {[%clk 0:02:59]}  Ba5 {[%clk 0:02:58]} 6. d4 {[%clk 0:02:59]}  exd4 {[%clk 0:02:58]} 7. cxd4 {[%clk 0:02:55]}  d5 {[%clk 0:02:58]} 8. e5 {[%clk 0:02:30]}  O-O {[%clk 0:02:54]} 9. h3 {[%clk 0:02:19]}  Bf5 {[%clk 0:02:51]} 10. Nc3 {[%clk 0:02:19]}  a6 {[%clk 0:02:32]} 11. Ba4 {[%clk 0:02:16]}  Bb6 {[%clk 0:02:06]} 12. Re1 {[%clk 0:02:14]}  Nb4 {[%clk 0:01:54]} 13. Bg5 {[%clk 0:01:43]}  c6 {[%clk 0:01:44]} 14. a3 {[%clk 0:01:34]}  Nd3 {[%clk 0:01:34]} 15. Nh4 {[%clk 0:01:11]}  Be4 {[%clk 0:01:15]} 16. Nxe4 {[%clk 0:01:06]}  dxe4 {[%clk 0:01:16]} 17. Nf5 {[%clk 0:01:06]}  f6 {[%clk 0:00:32]} 18. exf6 {[%clk 0:00:47]}  Nxf5 {[%clk 0:00:27]} 19. f7+ {[%clk 0:00:44]}  Rxf7 {[%clk 0:00:25]} 20. Bxd8 {[%clk 0:00:45]}  Rxd8 {[%clk 0:00:22]} 21. Bb3 {[%clk 0:00:43]}  Bxd4 {[%clk 0:00:14]} 22. Bxf7+ {[%clk 0:00:32]}  Kxf7 {[%clk 0:00:15]} 23. Qb3+ {[%clk 0:00:32]}  Kf6 {[%clk 0:00:09]} 24. Re2 {[%clk 0:00:30]}  Ng3 {[%clk 0:00:06]} 25. Rd2 {[%clk 0:00:29]}  Nf5 {[%clk 0:00:02]} 26. Rad1 {[%clk 0:00:27]}  c5 {[%clk 0:00:01]} 27. Rxd3 {[%clk 0:00:26]}  exd3 {[%clk 0:00:01]} 28. Rxd3 {[%clk 0:00:27]}  Rd6 {[%clk 0:00:01]} 29. Qxb7 {[%clk 0:00:25]}  Re6 {[%clk 0:00:02]} 30. Rd1 {[%clk 0:00:25]}  Re2 {[%clk 0:00:02]} 31. Qxa6+ {[%clk 0:00:25]}  Kg5 {[%clk 0:00:00]} 32. Qxe2 {[%clk 0:00:25]} 1-0

[Event "January 9 Late 2024"]
[Site "https://www.chess.com"]
[Date "2024.01.09"]
[Round "3"]
[White "Lin, Bryan Enming"]
[Black "Hess, Robert"]
[Result "0-1"]
[Board "48"]
[TimeControl "180+1"]
[WhiteFideId "30987121"]
[BlackFideId "2022036"]
[WhiteElo "2565"]
[BlackElo "2904"]
[WhiteTeam "USA"]
[BlackTeam "USA"]
[WhiteClock "0:00:36"]
[BlackClock "0:00:06"]

1. e4 {[%clk 0:03:00]}  d5 {[%clk 0:03:00]} 2. exd5 {[%clk 0:03:01]}  Qxd5 {[%clk 0:03:01]} 3. Nc3 {[%clk 0:03:01]}  Qd6 {[%clk 0:03:01]} 4. d4 {[%clk 0:03:02]}  Nf6 {[%clk 0:03:02]} 5. Nf3 {[%clk 0:03:00]}  a6 {[%clk 0:03:02]} 6. g3 {[%clk 0:02:56]}  Bg4 {[%clk 0:03:02]} 7. Bg2 {[%clk 0:02:56]}  Nc6 {[%clk 0:03:03]} 8. h3 {[%clk 0:02:56]}  Bh5 {[%clk 0:02:52]} 9. Bf4 {[%clk 0:02:45]}  Qe6+ {[%clk 0:02:52]} 10. Qe2 {[%clk 0:02:38]}  Bxf3 {[%clk 0:02:15]} 11. Qxe6 {[%clk 0:02:29]}  fxe6 {[%clk 0:02:05]} 12. Bxf3 {[%clk 0:02:28]}  Nxd4 {[%clk 0:02:05]} 13. Bxb7 {[%clk 0:02:16]}  Rb8 {[%clk 0:02:00]} 14. O-O-O {[%clk 0:02:16]}  Rxb7 {[%clk 0:01:40]} 15. Rxd4 {[%clk 0:02:15]}  g6 {[%clk 0:01:29]} 16. Ra4 {[%clk 0:02:13]}  Bg7 {[%clk 0:01:17]} 17. Rxa6 {[%clk 0:02:13]}  Nd5 {[%clk 0:01:13]} 18. Nxd5 {[%clk 0:02:07]}  Bxb2+ {[%clk 0:01:11]} 19. Kd2 {[%clk 0:02:06]}  exd5 {[%clk 0:01:11]} 20. Rb1 {[%clk 0:02:03]}  Kd7 {[%clk 0:01:00]} 21. Rxb2 {[%clk 0:01:36]}  Rxb2 {[%clk 0:01:01]} 22. Be5 {[%clk 0:01:36]}  Rhb8 {[%clk 0:01:01]} 23. Bxb2 {[%clk 0:01:36]}  Rxb2 {[%clk 0:01:02]} 24. Ra8 {[%clk 0:01:35]}  h5 {[%clk 0:00:44]} 25. Ra6 {[%clk 0:01:33]}  e6 {[%clk 0:00:36]} 26. h4 {[%clk 0:01:29]}  Rb4 {[%clk 0:00:26]} 27. Ra8 {[%clk 0:01:24]}  Rd4+ {[%clk 0:00:25]} 28. Ke2 {[%clk 0:01:22]}  Re4+ {[%clk 0:00:25]} 29. Kd2 {[%clk 0:01:22]}  Rd4+ {[%clk 0:00:26]} 30. Ke2 {[%clk 0:01:23]}  Rg4 {[%clk 0:00:21]} 31. Rg8 {[%clk 0:01:18]}  c5 {[%clk 0:00:20]} 32. Kd2 {[%clk 0:01:13]}  Ke7 {[%clk 0:00:20]} 33. Ke2 {[%clk 0:01:09]}  Kf7 {[%clk 0:00:20]} 34. Rc8 {[%clk 0:01:10]}  Rc4 {[%clk 0:00:20]} 35. Kd2 {[%clk 0:01:09]}  Kf6 {[%clk 0:00:20]} 36. Rf8+ {[%clk 0:01:08]}  Ke5 {[%clk 0:00:17]} 37. f3 {[%clk 0:01:07]}  Rd4+ {[%clk 0:00:13]} 38. Ke2 {[%clk 0:01:06]}  Ra4 {[%clk 0:00:13]} 39. Rc8 {[%clk 0:01:03]}  c4 {[%clk 0:00:12]} 40. Rg8 {[%clk 0:00:59]}  Kf6 {[%clk 0:00:12]} 41. c3 {[%clk 0:00:52]}  Rxa2+ {[%clk 0:00:12]} 42. Ke3 {[%clk 0:00:53]}  Rc2 {[%clk 0:00:12]} 43. Kd4 {[%clk 0:00:52]}  Rd2+ {[%clk 0:00:12]} 44. Kc5 {[%clk 0:00:53]}  Rd3 {[%clk 0:00:12]} 45. Rf8+ {[%clk 0:00:53]}  Ke7 {[%clk 0:00:10]} 46. Rg8 {[%clk 0:00:54]}  Kf7 {[%clk 0:00:10]} 47. Ra8 {[%clk 0:00:52]}  Rxf3 {[%clk 0:00:11]} 48. Kd6 {[%clk 0:00:52]}  Rxg3 {[%clk 0:00:09]} 49. Ra1 {[%clk 0:00:51]}  Rf3 {[%clk 0:00:06]} 50. Ra7+ {[%clk 0:00:46]}  Kf6 {[%clk 0:00:05]} 51. Ra8 {[%clk 0:00:47]}  Rxc3 {[%clk 0:00:05]} 52. Rf8+ {[%clk 0:00:47]}  Kg7 {[%clk 0:00:05]} 53. Rc8 {[%clk 0:00:43]}  Rh3 {[%clk 0:00:04]} 54. Kxe6 {[%clk 0:00:42]}  Rxh4 {[%clk 0:00:05]} 55. Kxd5 {[%clk 0:00:43]}  Kh6 {[%clk 0:00:04]} 56. Ke5 {[%clk 0:00:42]}  Kg5 {[%clk 0:00:03]} 57. Ra8 {[%clk 0:00:43]}  Rg4 {[%clk 0:00:03]} 58. Ra5 {[%clk 0:00:42]}  Kh4 {[%clk 0:00:04]} 59. Ra3 {[%clk 0:00:41]}  Rg3 {[%clk 0:00:04]} 60. Ra4 {[%clk 0:00:41]}  Rg5+ {[%clk 0:00:04]} 61. Kf6 {[%clk 0:00:40]}  Rg4 {[%clk 0:00:05]} 62. Ra3 {[%clk 0:00:40]}  g5 {[%clk 0:00:04]} 63. Kf5 {[%clk 0:00:40]}  Rf4+ {[%clk 0:00:05]} 64. Ke5 {[%clk 0:00:40]}  Kg4 {[%clk 0:00:05]} 65. Ra1 {[%clk 0:00:40]}  Rf3 {[%clk 0:00:05]} 66. Ra4 {[%clk 0:00:40]}  h4 {[%clk 0:00:05]} 67. Rxc4+ {[%clk 0:00:40]}  Rf4 {[%clk 0:00:06]} 68. Rc1 {[%clk 0:00:38]}  h3 {[%clk 0:00:06]} 69. Rf1 {[%clk 0:00:36]}  Rxf1 {[%clk 0:00:06]} 0-1

[Event "January 9 Late 2024"]
[Site "https://www.chess.com"]
[Date "2024.01.09"]
[Round "3"]
[White "Christiansen, Johan-Sebastian"]
[Black "Hoffmann, Asa"]
[Result "1-0"]
[Board "51"]
[TimeControl "180+1"]
[WhiteFideId "1512668"]
[BlackFideId "2001470"]
[WhiteElo "2896"]
[BlackElo "2386"]
[WhiteTeam "NOR"]
[BlackTeam "USA"]
[WhiteClock "0:00:42"]
[BlackClock "0:00:56"]

1. e4 {[%clk 0:03:00]}  d6 {[%clk 0:02:56]} 2. d4 {[%clk 0:03:01]}  Nf6 {[%clk 0:02:56]} 3. Nc3 {[%clk 0:03:01]}  c6 {[%clk 0:02:55]} 4. Nf3 {[%clk 0:03:00]}  Bg4 {[%clk 0:02:55]} 5. h3 {[%clk 0:03:00]}  Bh5 {[%clk 0:02:54]} 6. Be3 {[%clk 0:02:59]}  e6 {[%clk 0:02:54]} 7. Be2 {[%clk 0:02:59]}  d5 {[%clk 0:02:54]} 8. e5 {[%clk 0:02:58]}  Nfd7 {[%clk 0:02:54]} 9. Ng1 {[%clk 0:02:26]}  Bg6 {[%clk 0:02:54]} 10. h4 {[%clk 0:02:24]}  h6 {[%clk 0:02:53]} 11. h5 {[%clk 0:02:24]}  Bh7 {[%clk 0:02:53]} 12. Nb1 {[%clk 0:02:17]}  c5 {[%clk 0:02:53]} 13. c3 {[%clk 0:02:18]}  Nc6 {[%clk 0:02:53]} 14. Nf3 {[%clk 0:02:16]}  Qb6 {[%clk 0:02:53]} 15. b3 {[%clk 0:02:08]}  cxd4 {[%clk 0:02:51]} 16. cxd4 {[%clk 0:02:08]}  Nb4 {[%clk 0:02:40]} 17. O-O {[%clk 0:02:03]}  Nc2 {[%clk 0:02:38]} 18. Nbd2 {[%clk 0:01:59]}  Nxa1 {[%clk 0:02:37]} 19. Qxa1 {[%clk 0:02:00]}  Ba3 {[%clk 0:02:34]} 20. g4 {[%clk 0:01:50]}  O-O-O {[%clk 0:02:28]} 21. Nb1 {[%clk 0:01:47]}  Be7 {[%clk 0:02:26]} 22. Nc3 {[%clk 0:01:46]}  Kb8 {[%clk 0:02:26]} 23. Na4 {[%clk 0:01:45]}  Qb4 {[%clk 0:02:20]} 24. Bd2 {[%clk 0:01:44]}  Qa3 {[%clk 0:02:18]} 25. Bc1 {[%clk 0:01:43]}  Qb4 {[%clk 0:02:17]} 26. Bd2 {[%clk 0:01:42]}  Qa3 {[%clk 0:02:14]} 27. Bc1 {[%clk 0:01:24]}  Qb4 {[%clk 0:02:14]} 28. Qb2 {[%clk 0:01:13]}  Bg5 {[%clk 0:01:39]} 29. Nxg5 {[%clk 0:01:06]}  hxg5 {[%clk 0:01:38]} 30. Bxg5 {[%clk 0:01:07]}  Rc8 {[%clk 0:01:38]} 31. a3 {[%clk 0:01:02]}  Qf8 {[%clk 0:01:30]} 32. Bd1 {[%clk 0:00:59]}  f6 {[%clk 0:01:25]} 33. exf6 {[%clk 0:00:59]}  gxf6 {[%clk 0:01:25]} 34. Bf4+ {[%clk 0:01:00]}  e5 {[%clk 0:01:24]} 35. dxe5 {[%clk 0:00:55]}  fxe5 {[%clk 0:01:24]} 36. Bxe5+ {[%clk 0:00:48]}  Nxe5 {[%clk 0:01:24]} 37. Qxe5+ {[%clk 0:00:49]}  Ka8 {[%clk 0:01:24]} 38. Qxd5 {[%clk 0:00:50]}  Qd8 {[%clk 0:01:13]} 39. Qg2 {[%clk 0:00:46]}  Rg8 {[%clk 0:01:12]} 40. Bf3 {[%clk 0:00:46]}  Rb8 {[%clk 0:01:10]} 41. Nc5 {[%clk 0:00:45]}  Rg7 {[%clk 0:01:07]} 42. Ne6 {[%clk 0:00:44]}  Qe7 {[%clk 0:01:06]} 43. Nxg7 {[%clk 0:00:44]}  Qxg7 {[%clk 0:01:06]} 44. g5 {[%clk 0:00:45]}  Bf5 {[%clk 0:01:05]} 45. g6 {[%clk 0:00:44]}  Qh6 {[%clk 0:01:05]} 46. Re1 {[%clk 0:00:42]}  Qd2 {[%clk 0:01:00]} 47. Bxb7+ {[%clk 0:00:41]}  Rxb7 {[%clk 0:00:57]} 48. Re8+ {[%clk 0:00:42]}  Bc8 {[%clk 0:00:56]} 49. Rxc8# {[%clk 0:00:42]} 1-0

[Event "January 9 Late 2024"]
[Site "https://www.chess.com"]
[Date "2024.01.09"]
[Round "3"]
[White "Gledura, Benjamin"]
[Black "Silvestre, Christian"]
[Result "1/2-1/2"]
[Board "52"]
[TimeControl "180+1"]
[WhiteFideId "712779"]
[BlackFideId "30956269"]
[WhiteElo "2892"]
[BlackElo "2302"]
[WhiteTeam "HUN"]
[BlackTeam "USA"]
[WhiteClock "0:00:02"]
[BlackClock "0:00:09"]

1. Nf3 {[%clk 0:03:00]}  Nf6 {[%clk 0:02:58]} 2. g3 {[%clk 0:03:01]}  g6 {[%clk 0:02:58]} 3. Bg2 {[%clk 0:03:01]}  Bg7 {[%clk 0:02:58]} 4. O-O {[%clk 0:03:01]}  O-O {[%clk 0:02:59]} 5. c4 {[%clk 0:03:01]}  d5 {[%clk 0:02:58]} 6. cxd5 {[%clk 0:03:01]}  Nxd5 {[%clk 0:02:59]} 7. d4 {[%clk 0:03:01]}  Nb6 {[%clk 0:02:56]} 8. Nc3 {[%clk 0:02:59]}  Nc6 {[%clk 0:02:52]} 9. e3 {[%clk 0:02:59]}  e5 {[%clk 0:02:51]} 10. d5 {[%clk 0:02:45]}  Ne7 {[%clk 0:02:49]} 11. e4 {[%clk 0:02:44]}  Bg4 {[%clk 0:02:21]} 12. h3 {[%clk 0:02:42]}  Bxf3 {[%clk 0:02:17]} 13. Qxf3 {[%clk 0:02:41]}  c6 {[%clk 0:02:16]} 14. Rd1 {[%clk 0:02:35]}  cxd5 {[%clk 0:02:13]} 15. exd5 {[%clk 0:02:32]}  Nf5 {[%clk 0:02:08]} 16. Be3 {[%clk 0:02:26]}  Nc4 {[%clk 0:02:06]} 17. Bc5 {[%clk 0:02:25]}  Nd4 {[%clk 0:02:01]} 18. Bxd4 {[%clk 0:02:10]}  exd4 {[%clk 0:02:02]} 19. Na4 {[%clk 0:02:07]}  b5 {[%clk 0:01:50]} 20. Nc5 {[%clk 0:02:07]}  Nxb2 {[%clk 0:01:46]} 21. Rdc1 {[%clk 0:02:04]}  Nc4 {[%clk 0:01:42]} 22. Nd3 {[%clk 0:02:02]}  Rc8 {[%clk 0:01:38]} 23. a4 {[%clk 0:01:56]}  Nd2 {[%clk 0:01:32]} 24. Qd1 {[%clk 0:01:55]}  Rxc1 {[%clk 0:01:25]} 25. Rxc1 {[%clk 0:01:55]}  Nc4 {[%clk 0:01:16]} 26. axb5 {[%clk 0:01:55]}  Nb6 {[%clk 0:01:16]} 27. Rc6 {[%clk 0:01:46]}  Nxd5 {[%clk 0:01:13]} 28. Qa4 {[%clk 0:01:45]}  Nc3 {[%clk 0:00:51]} 29. Qc4 {[%clk 0:01:43]}  Qa5 {[%clk 0:00:46]} 30. Rc5 {[%clk 0:01:36]}  Qa1+ {[%clk 0:00:46]} 31. Kh2 {[%clk 0:01:36]}  Ne2 {[%clk 0:00:42]} 32. h4 {[%clk 0:01:29]}  Qg1+ {[%clk 0:00:37]} 33. Kh3 {[%clk 0:01:29]}  Nc3 {[%clk 0:00:35]} 34. Rc7 {[%clk 0:01:27]}  Qb1 {[%clk 0:00:32]} 35. Nb4 {[%clk 0:01:06]}  Qf5+ {[%clk 0:00:28]} 36. Kh2 {[%clk 0:01:05]}  Qxb5 {[%clk 0:00:29]} 37. Qxb5 {[%clk 0:00:59]}  Nxb5 {[%clk 0:00:29]} 38. Rb7 {[%clk 0:01:00]}  Nd6 {[%clk 0:00:23]} 39. Rxa7 {[%clk 0:00:59]}  h5 {[%clk 0:00:23]} 40. Rd7 {[%clk 0:00:58]}  Nf5 {[%clk 0:00:23]} 41. Bd5 {[%clk 0:00:55]}  Nh6 {[%clk 0:00:22]} 42. Kg2 {[%clk 0:00:54]}  Bf6 {[%clk 0:00:22]} 43. Nc6 {[%clk 0:00:53]}  Rc8 {[%clk 0:00:20]} 44. Be4 {[%clk 0:00:47]}  Re8 {[%clk 0:00:18]} 45. f3 {[%clk 0:00:47]}  Rc8 {[%clk 0:00:15]} 46. Kh3 {[%clk 0:00:46]}  Kg7 {[%clk 0:00:15]} 47. g4 {[%clk 0:00:44]}  hxg4+ {[%clk 0:00:14]} 48. fxg4 {[%clk 0:00:45]}  Re8 {[%clk 0:00:14]} 49. Bd5 {[%clk 0:00:43]}  g5 {[%clk 0:00:13]} 50. hxg5 {[%clk 0:00:42]}  Bxg5 {[%clk 0:00:14]} 51. Nxd4 {[%clk 0:00:42]}  Re3+ {[%clk 0:00:14]} 52. Kg2 {[%clk 0:00:41]}  Kf6 {[%clk 0:00:15]} 53. Nf3 {[%clk 0:00:37]}  Nxg4 {[%clk 0:00:12]} 54. Rxf7+ {[%clk 0:00:25]}  Kg6 {[%clk 0:00:12]} 55. Rf8 {[%clk 0:00:16]}  Nf6 {[%clk 0:00:12]} 56. Bc4 {[%clk 0:00:16]}  Rc3 {[%clk 0:00:12]} 57. Be6 {[%clk 0:00:15]}  Bf4 {[%clk 0:00:11]} 58. Nh4+ {[%clk 0:00:14]}  Kg5 {[%clk 0:00:11]} 59. Nf3+ {[%clk 0:00:13]}  Kg6 {[%clk 0:00:11]} 60. Rf7 {[%clk 0:00:11]}  Rc2+ {[%clk 0:00:12]} 61. Kh3 {[%clk 0:00:11]}  Rc3 {[%clk 0:00:12]} 62. Kg2 {[%clk 0:00:10]}  Rc2+ {[%clk 0:00:13]} 63. Kf1 {[%clk 0:00:11]}  Rc3 {[%clk 0:00:12]} 64. Nh4+ {[%clk 0:00:10]}  Kg5 {[%clk 0:00:13]} 65. Nf5 {[%clk 0:00:10]}  Rc1+ {[%clk 0:00:12]} 66. Ke2 {[%clk 0:00:10]}  Ne4 {[%clk 0:00:10]} 67. Kd3 {[%clk 0:00:09]}  Nf2+ {[%clk 0:00:09]} 68. Kd4 {[%clk 0:00:09]}  Ng4 {[%clk 0:00:09]} 69. Ne7 {[%clk 0:00:05]}  Be5+ {[%clk 0:00:08]} 70. Ke4 {[%clk 0:00:04]}  Bf6 {[%clk 0:00:07]} 71. Bxg4 {[%clk 0:00:01]}  Re1+ {[%clk 0:00:07]} 72. Kd5 {[%clk 0:00:02]}  Rxe7 {[%clk 0:00:08]} 73. Rxe7 {[%clk 0:00:02]}  Bxe7 {[%clk 0:00:09]} 1/2-1/2

[Event "January 9 Late 2024"]
[Site "https://www.chess.com"]
[Date "2024.01.09"]
[Round "3"]
[White "Niekras, Dawid"]
[Black "Vachier-Lagrave, Maxime"]
[Result "0-1"]
[Board "53"]
[TimeControl "180+1"]
[WhiteFideId "1160451"]
[BlackFideId "623539"]
[WhiteElo "2709"]
[BlackElo "3156"]
[WhiteTeam "POL"]
[BlackTeam "FRA"]
[WhiteClock "0:00:01"]
[BlackClock "0:00:15"]

1. e4 {[%clk 0:03:00]}  c5 {[%clk 0:02:58]} 2. Nf3 {[%clk 0:03:01]}  d6 {[%clk 0:02:46]} 3. Nc3 {[%clk 0:03:01]}  Nf6 {[%clk 0:02:43]} 4. e5 {[%clk 0:03:02]}  dxe5 {[%clk 0:02:42]} 5. Nxe5 {[%clk 0:03:03]}  a6 {[%clk 0:02:39]} 6. g3 {[%clk 0:03:02]}  Nbd7 {[%clk 0:02:35]} 7. Nf3 {[%clk 0:02:37]}  b5 {[%clk 0:02:32]} 8. Bg2 {[%clk 0:02:37]}  Bb7 {[%clk 0:02:32]} 9. O-O {[%clk 0:02:37]}  e6 {[%clk 0:02:31]} 10. d3 {[%clk 0:02:10]}  Be7 {[%clk 0:02:29]} 11. a4 {[%clk 0:02:06]}  b4 {[%clk 0:02:27]} 12. Nb1 {[%clk 0:02:06]}  O-O {[%clk 0:02:26]} 13. Nbd2 {[%clk 0:02:06]}  a5 {[%clk 0:02:21]} 14. Nc4 {[%clk 0:02:04]}  Ra6 {[%clk 0:02:08]} 15. Nfe5 {[%clk 0:01:26]}  Bxg2 {[%clk 0:02:06]} 16. Kxg2 {[%clk 0:01:27]}  Nxe5 {[%clk 0:02:06]} 17. Nxe5 {[%clk 0:01:28]}  Qd5+ {[%clk 0:02:07]} 18. Nf3 {[%clk 0:01:28]}  c4 {[%clk 0:01:54]} 19. d4 {[%clk 0:00:56]}  Nd7 {[%clk 0:01:36]} 20. Re1 {[%clk 0:00:52]}  Bf6 {[%clk 0:01:36]} 21. Qe2 {[%clk 0:00:38]}  Rd8 {[%clk 0:01:31]} 22. Be3 {[%clk 0:00:33]}  Rc6 {[%clk 0:01:18]} 23. Kg1 {[%clk 0:00:31]}  Nf8 {[%clk 0:01:18]} 24. Rad1 {[%clk 0:00:27]}  Ng6 {[%clk 0:01:18]} 25. h4 {[%clk 0:00:19]}  h6 {[%clk 0:01:16]} 26. Bc1 {[%clk 0:00:19]}  Rcc8 {[%clk 0:01:15]} 27. Ne5 {[%clk 0:00:18]}  Ne7 {[%clk 0:00:30]} 28. Ng4 {[%clk 0:00:18]}  Nf5 {[%clk 0:00:30]} 29. Nxf6+ {[%clk 0:00:14]}  gxf6 {[%clk 0:00:31]} 30. c3 {[%clk 0:00:11]}  Kf8 {[%clk 0:00:30]} 31. Kh2 {[%clk 0:00:10]}  Ke7 {[%clk 0:00:30]} 32. Bf4 {[%clk 0:00:07]}  h5 {[%clk 0:00:22]} 33. Rc1 {[%clk 0:00:03]}  b3 {[%clk 0:00:21]} 34. Rg1 {[%clk 0:00:03]}  Rg8 {[%clk 0:00:21]} 35. Rce1 {[%clk 0:00:02]}  Rg4 {[%clk 0:00:20]} 36. Qe4 {[%clk 0:00:02]}  Rd8 {[%clk 0:00:18]} 37. Qxd5 {[%clk 0:00:02]}  Rxd5 {[%clk 0:00:19]} 38. Kh3 {[%clk 0:00:01]}  Rg6 {[%clk 0:00:19]} 39. Re2 {[%clk 0:00:01]}  Kd7 {[%clk 0:00:18]} 40. Rge1 {[%clk 0:00:01]}  Kc6 {[%clk 0:00:19]} 41. f3 {[%clk 0:00:01]}  Rd8 {[%clk 0:00:18]} 42. g4 {[%clk 0:00:02]}  hxg4+ {[%clk 0:00:18]} 43. fxg4 {[%clk 0:00:03]}  Ne7 {[%clk 0:00:19]} 44. h5 {[%clk 0:00:03]}  Rg7 {[%clk 0:00:19]} 45. Rf2 {[%clk 0:00:03]}  Nd5 {[%clk 0:00:20]} 46. Bh6 {[%clk 0:00:03]}  Rh7 {[%clk 0:00:20]} 47. Bd2 {[%clk 0:00:03]}  Rg8 {[%clk 0:00:20]} 48. Rg1 {[%clk 0:00:02]}  f5 {[%clk 0:00:21]} 49. Kh4 {[%clk 0:00:02]}  Nf6 {[%clk 0:00:20]} 50. Bg5 {[%clk 0:00:01]}  Ne4 {[%clk 0:00:16]} 51. Rfg2 {[%clk 0:00:01]}  Rxg5 {[%clk 0:00:16]} 52. gxf5 {[%clk 0:00:01]}  Rhxh5# {[%clk 0:00:15]} 0-1